[Event "16th Serbian-ch Women 2022"]
[Site "Bajina Basta"]
[Date "2022.12.06"]
[Round "1.1"]
[White "Srdanovic, Jovana"]
[Black "Eric, Jovana"]
[Result "1/2-1/2"]
[ECO "E11"]
[WhiteElo "2189"]
[BlackElo "2245"]
[Annotator "TA"]
[PlyCount "92"]
[EventDate "2022.12.06"]
[EventType "tourn"]
[EventCountry "SRB"]
[SourceTitle "playchess.com"]
[Source "ChessBase"]
[SourceQuality "1"]
[TimeControl "40/5400+30:1800+30"]

{[%evp 12,92,16,0,0,0,28,-5,22,29,31,25,26,22,26,22,35,19,45,28,49,29,107,60,102,64,85,43,97,113,117,100,129,77,138,157,151,149,181,172,185,191,285,266,259,208,226,175,190,222,223,105,529,510,510,328,845,788,1174,1152,1096,1083,914,78,70,59,231,0,0,0,0,0,0,0,0,0,0,0,0,0,0,0,0]} 1. d4 {[%emt 0:00:03]} Nf6 {[%emt 0:00:06]} 2. c4 {[%emt 0:00:06]} e6 {[%emt 0:00:10]} 3. Nf3 {[%emt 0:00:11]} Bb4+ {[%emt 0:00:14]} 4. Nbd2 {[%emt 0:00:08]} O-O {[%emt 0:00:20]} 5. a3 {[%emt 0:00:21]} Be7 {[%emt 0:00:22]} 6. e3 {[%emt 0:00:25]} d5 {[%emt 0:00:35]} 7. Qc2 {[%emt 0:01:19]} b6 {[%emt 0:01:18] E11: Bogo-Indian.} 8. b4 {[%emt 0:03:34]} dxc4 {[%emt 0:05:45]} 9. Bxc4 {[%emt 0:03:27]} Bb7 {[%emt 0:00:15]} 10. O-O {[%emt 0:05:03]} Nbd7 {[%emt 0:02:27] [#]} 11. Bb2 $146 {[%emt 0:08:08]} ({Predecessor:} 11. e4 c5 12. bxc5 bxc5 13. Bb2 Rc8 14. Qb3 Nb6 15. e5 Ne4 16. Nxe4 Bxe4 17. Ba6 {0-1 (27) Edakina,M-Motzkus,M (1839) Copenhagen 2007}) 11... a5 {[%emt 0:05:52]} 12. b5 {[%emt 0:10:09]} Rc8 {[%emt 0:04:17]} 13. Qd3 {[%emt 0:16:32]} h6 {[%emt 0:28:46]} 14. Rac1 {[%emt 0:06:31]} Re8 {[%emt 0:01:46]} 15. e4 {[%emt 0:03:25]} Bf8 {[%emt 0:02:43]} 16. Rfd1 {[%emt 0:06:43]} (16. e5 {seems wilder.} Nd5 17. Ne4 Nf4 18. Qe3) 16... g6 {[%emt 0:03:03]} (16... c6 $11) 17. Qe2 {[%emt 0:05:47]} ({Better is} 17. Re1 $16) 17... Bg7 {[%emt 0:01:12]} 18. Ba2 {[%emt 0:07:49]} Qe7 {[%emt 0:02:45]} 19. Rc2 {[%emt 0:06:26]} Red8 {[%emt 0:14:25]} (19... c5 $14) 20. Rdc1 $16 {[%emt 0:00:48]} Ne8 {[%emt 0:00:08]} 21. e5 {[%emt 0:03:33]} Nb8 {[%emt 0:01:59]} 22. Nc4 {[%emt 0:01:32]} (22. Qe3 $142 $1) 22... Qd7 {[%emt 0:02:21]} (22... h5 $142) 23. a4 $1 {[%emt 0:00:34]} Bf8 {[%emt 0:00:22]} 24. h4 {[%emt 0:01:11][%cal Oh4h5]} Ng7 {[%emt 0:00:25]} 25. Ne3 {[%emt 0:01:54]} Nh5 {[%emt 0:03:54]} 26. Ng4 {[%emt 0:00:50] And now Nf6+ would win.} Bg7 {[%emt 0:02:53] Prevents Nf6+.} (26... c5 $142 27. Bb3 Ba8) 27. Qe3 $18 {[%emt 0:01:17]} Kh7 {[%emt 0:00:14]} 28. Rd1 {[%emt 0:01:51]} c6 {[%emt 0:02:16]} 29. Bc1 $1 {[%emt 0:04:16]} cxb5 {[%emt 0:01:11]} 30. Rxc8 {[%emt 0:00:05]} Rxc8 {[%emt 0:00:06] [#]} 31. d5 $1 {[%emt 0:00:12][%cal Rg4h6]} (31. Nxh6 Bxf3 32. Qxf3 Bxh6 $17) 31... Rxc1 $4 {[%emt 0:04:47][%mdl 8192]} 32. Rxc1 {[%emt 0:00:39]} exd5 {[%emt 0:00:10]} 33. e6 {[%emt 0:01:18]} (33. Qxb6 Qxg4 34. Nh2 (34. Qxb7 $2 Nf4 $19) 34... Qf4 $17) 33... fxe6 {[%emt 0:00:38]} (33... Qxe6 34. Qxe6 fxe6) 34. Nfe5 {[%emt 0:00:24]} Qd6 {[%emt 0:02:45]} 35. Bb1 {[%emt 0:00:45]} (35. axb5 d4 36. Nf7 dxe3 $18) 35... d4 {[%emt 0:01:30]} 36. Bxg6+ {[%emt 0:00:06]} Kg8 {[%emt 0:00:05]} 37. Qe1 $2 {[%emt 0:01:00]} (37. Nxh6+ $18 {and White stays clearly on top.} Kf8 38. Qg5) 37... Nf4 $16 {[%emt 0:00:45] aiming for ...Nd7.} 38. Be4 $1 {[%emt 0:00:25]} (38. axb5 h5 39. Bf7+ Kf8 $17) 38... d3 $2 {[%emt 0:01:30] [#]} (38... Nd7 $1 $14 39. Bxb7 Nxe5 40. Rc8+ Kf7 41. Nxe5+ Qxe5 42. Qxe5 Bxe5 43. axb5 a4) 39. Bxb7 $2 {[%emt 0:00:04] Dancing on a razor blade.} (39. Nxh6+ $2 Bxh6 40. Bxd3 Nxd3 $19) ({White has to play} 39. Nxd3 $1 $18 Nxd3 40. Bxd3) 39... Ne2+ $11 {[%emt 0:00:09] The position is equal.} 40. Kh1 {[%emt 0:00:35] Threatens to win with Rc8+.} Nxc1 {[%emt 0:02:08]} (40... Bxe5 41. Rc8+ (41. Nxh6+ $2 Kg7 $19) (41. axb5 $2 Nxc1 42. Qxc1 d2 $19) 41... Kg7 42. Bf3 $16 (42. axb5 $2 Qe7 $19) (42. Qd2 Bf4 $17)) 41. Qxc1 {[%emt 0:03:37] White wants to mate with Qc8+.} (41. Qe4 $5 Qe7 $8 42. Ng6 $11) 41... Bxe5 {[%emt 0:09:39]} 42. Nxh6+ {[%emt 0:07:04]} Kf8 {[%emt 0:07:17]} (42... Kg7 $5 43. Qg5+ $8 (43. axb5 $2 {loses.} d2 $19) 43... Kf8 $11) 43. Qc8+ $1 {[%emt 0:01:01]} Ke7 $1 {[%emt 0:02:04]} (43... Kg7 $2 {gets mated.} 44. Qg8+ Kxh6 45. Be4 bxa4 46. Qh7#) 44. Ng8+ $1 {[%emt 0:01:04]} Kf7 {[%emt 0:00:06]} 45. Nh6+ $1 {[%emt 0:00:32]} Ke7 $1 {[%emt 0:03:13]} (45... Kg7 $2 {leads to mate.} 46. Qg8+ Kxh6 47. Be4 bxa4 48. Qh7#) 46. Ng8+ $1 {[%emt 0:01:47]} Kf7 {[%emt 0:14:34] White really could win this.   Weighted Error Value: White=0.33/Black=0.47} 1/2-1/2

[Event "16th Serbian-ch Women 2022"]
[Site "Bajina Basta"]
[Date "2022.12.06"]
[Round "1.2"]
[White "Grozdanovic, Anastasia"]
[Black "Drljevic, Ljilja"]
[Result "0-1"]
[ECO "A53"]
[WhiteElo "1870"]
[BlackElo "2175"]
[Annotator "TA"]
[PlyCount "84"]
[EventDate "2022.12.06"]
[EventType "tourn"]
[EventCountry "SRB"]
[SourceTitle "playchess.com"]
[Source "ChessBase"]
[SourceQuality "1"]
[TimeControl "40/5400+30:1800+30"]

{[%evp 12,84,27,32,43,38,43,30,49,28,62,42,45,55,66,21,52,48,97,91,85,68,114,102,103,99,104,66,143,139,210,153,202,205,186,178,173,164,152,178,169,166,209,179,259,259,269,196,219,199,253,253,310,285,283,279,277,276,276,167,337,339,958,66,945,8,9,8,152,63,83,-29975,-29972,-29972,-5393]} 1. d4 {[%emt 0:00:04]} Nf6 {[%emt 0:00:43]} 2. c4 {[%emt 0:00:10]} d6 {[%emt 0:00:37]} 3. Nc3 {[%emt 0:00:24]} Nbd7 {[%emt 0:00:13]} 4. e4 {[%emt 0:00:33]} e5 {[%emt 0:00:02]} 5. d5 {[%emt 0:00:08]} Be7 {[%emt 0:00:22]} 6. f3 {[%emt 0:00:40]} O-O {[%emt 0:01:03]} 7. Be3 {[%emt 0:01:33]} a5 {[%emt 0:02:52] A53: Old Indian Defence without Nf3.} 8. Nh3 {[%emt 0:00:28]} Ne8 {[%emt 0:08:22] [#]} 9. Nf2 $146 {[%emt 0:06:53]} ({Predecessor:} 9. Qd2 Nc5 10. g4 Bh4+ 11. Nf2 Bd7 12. O-O-O Nf6 13. Be2 c6 14. dxc6 Bxc6 15. Qxd6 Qxd6 16. Rxd6 {1-0 (78) Varpanen,J (1838)-Rautanen,S (1955) Finland 2013}) 9... c6 {[%emt 0:03:50] White has an edge.} 10. Qd2 {[%emt 0:10:11]} a4 {[%emt 0:20:49]} 11. Be2 {[%emt 0:11:10]} Qa5 {[%emt 0:07:09]} 12. Rb1 {[%emt 0:04:24]} Nc5 {[%emt 0:02:30]} 13. g4 {[%emt 0:03:39] Inhibits f5.} Bh4 {[%emt 0:16:05]} 14. O-O $36 {[%emt 0:15:45][%mdl 2048] White has good play.} Qc7 {[%emt 0:01:08]} (14... Nc7 $14 {feels stronger.}) 15. b4 $16 {[%emt 0:09:19]} axb3 {[%emt 0:02:22]} 16. axb3 {[%emt 0:00:04][%cal Ba2b3,Bb3b4][%mdl 32]} Ra3 {[%emt 0:22:44]} (16... cxd5 $14 17. cxd5 (17. Nxd5 Qd8 $16) 17... h5) 17. b4 {[%emt 0:03:58]} Na4 {[%emt 0:00:28]} 18. Nxa4 {[%emt 0:02:38]} Rxa4 {[%emt 0:00:02]} 19. c5 {[%emt 0:06:32]} Be7 {[%emt 0:03:03]} (19... cxd5 $14 20. cxd6 (20. exd5 f5 $11) (20. Qxd5 Be6 $11) 20... Nxd6) 20. Rfc1 {[%emt 0:03:57]} Qd7 {[%emt 0:04:15]} (20... Qb8 $16 21. Nd1 Ra3) 21. Nd3 {[%emt 0:04:18]} Ra3 {[%emt 0:01:23]} (21... Nf6 $16 {was necessary.}) 22. Qb2 $18 {[%emt 0:01:40]} Ra8 {[%emt 0:00:05]} 23. cxd6 {[%emt 0:01:06]} Bxd6 {[%emt 0:00:13]} 24. dxc6 {[%emt 0:01:24]} bxc6 {[%emt 0:00:09]} 25. Nxe5 {[%emt 0:01:37]} Qe6 {[%emt 0:00:55]} 26. Nc4 {[%emt 0:01:07]} (26. Nxc6 Ra2 27. Nd8 Rxb2 28. Nxe6 Rxb1 29. Rxb1 fxe6 $11) 26... Bc7 {[%emt 0:00:55]} 27. Bc5 {[%emt 0:02:02]} Nf6 {[%emt 0:01:05]} (27... Bf4 $142 28. Bxf8 Kxf8) 28. Bxf8 {[%emt 0:01:12]} Kxf8 {[%emt 0:00:02]} 29. Qb3 {[%emt 0:01:07]} Bf4 {[%emt 0:00:56][%cal Rf6g4]} 30. Rd1 {[%emt 0:02:29]} Ba6 {[%emt 0:00:34]} (30... Qe7 $142 31. Qc2 Be6) 31. Ra1 {[%emt 0:00:47]} h5 {[%emt 0:00:31]} 32. Nd2 {[%emt 0:02:28]} Qc8 {[%emt 0:00:13]} 33. Bxa6 {[%emt 0:00:14]} Rxa6 {[%emt 0:00:02]} 34. Rxa6 {[%emt 0:00:13]} Qxa6 {[%emt 0:00:02]} 35. Qc4 {[%emt 0:01:17] Against Qe2} Qa3 {[%emt 0:00:28]} (35... Qb6+ {was worth a try.} 36. Kg2 hxg4 37. Qc5+ Qxc5 38. bxc5 gxf3+ 39. Kxf3 Bxh2) 36. Nb3 {[%emt 0:00:54] [#] Threatening mate with Qc5+.} (36. Qxc6 Qe3+ 37. Kf1 (37. Kh1 Qe2 $11) 37... Qd3+ 38. Kf2 (38. Kg1 Qe2 $15) 38... Qe3+ 39. Kf1 Qd3+ 40. Kf2 (40. Kg1 Qe2 $15) 40... Qe3+ 41. Kf1 $11) 36... Qb2 $2 {[%emt 0:01:00]} (36... g6 37. e5 (37. Qxc6 $2 Qxb3 38. Rf1 Kg7 $19) 37... Qa7+ 38. Qc5+ Qxc5+ 39. Nxc5 Nd5) 37. Kf1 $2 {[%emt 0:01:48]} (37. Qc5+ $18 Kg8 38. Rd8+ Kh7 39. Qf5+ g6 40. Qxf4 hxg4 41. fxg4) 37... hxg4 $2 {[%emt 0:00:19][%mdl 8192]} (37... Be3 $14 38. Nd2 Bxd2) 38. Rd8+ $2 {[%emt 0:00:42]} (38. Qc5+ $18 Kg8 39. Rd8+ Kh7 40. Qf5+ g6 41. Qxf4) 38... Ke7 $11 {[%emt 0:00:03] Chess con chili.} 39. Rd3 {[%emt 0:00:29]} Qb1+ {[%emt 0:01:29]} (39... Qxh2 $11 40. Qd4 (40. Qxc6 Qh1+ 41. Ke2 gxf3+ 42. Rxf3 Qg2+ 43. Rf2 Qg4+ 44. Rf3 Qg2+ 45. Rf2 Qg4+ 46. Rf3 Qg2+ $11) 40... Kf8) 40. Ke2 {[%emt 0:00:14]} (40. Kg2 $16 {Hoping for Qc5+.} g5 41. e5 Qb2+ 42. Kf1 Qxe5 43. Nd4 (43. Qxc6 gxf3 44. Qxf3 Kf8 $16)) 40... gxf3+ $14 {[%emt 0:00:47]} 41. Kf2 $2 {[%emt 0:30:07][%mdl 8192] [#]} (41. Rxf3 $16 Qb2+ 42. Kd1 Qb1+ 43. Nc1 Bxc1 44. Qxc1 (44. Qc5+ Kd7 $16) 44... Qxb4 45. Qxc6) 41... Ng4+ {[%emt 0:01:43]} (41... Bxh2 $2 42. Qc5+ (42. Nc1 $2 Ng4+ 43. Kf1 Ne5 $19) 42... Ke8 43. Qxc6+ (43. Rxf3 $2 {loses.} Nxe4+ 44. Ke2 Nxc5 $19) 43... Kf8 44. Qc5+ (44. Rxf3 Nxe4+ 45. Ke2 Ng3+ 46. Rxg3 Qb2+ 47. Nd2 Bxg3 $11) 44... Kg8 45. Qc8+ (45. Rxf3 $2 Nxe4+ 46. Ke2 Nxc5 $19) 45... Kh7 46. Qh3+ (46. Rxf3 Qg1+ 47. Ke2 Qg2+ 48. Rf2 Qxe4+ 49. Kd1 Qh1+ 50. Kc2 Qe4+ 51. Kd1 Qh1+ 52. Kc2 Qe4+ 53. Kb2 Bd6 $14) 46... Kg6 47. Qxf3 $18 (47. Rxf3 $2 Nxe4+ 48. Ke2 Qc2+ 49. Ke1 Ng5 $19)) 42. Kxf3 {[%emt 0:00:00]} Ne5+ {[%emt 0:00:05] Weighted Error Value: White=0.66/Black=0.42} (42... Nxh2+ $2 43. Kxf4 Qf1+ 44. Ke3 Ng4+ 45. Kd2 Qf2+ 46. Kc3 $18) 0-1

[Event "16th Serbian-ch Women 2022"]
[Site "Bajina Basta"]
[Date "2022.12.06"]
[Round "1.3"]
[White "Dimitrijevic, Andjela"]
[Black "Manakova, Maria"]
[Result "0-1"]
[ECO "B40"]
[WhiteElo "1993"]
[BlackElo "2160"]
[Annotator "TA"]
[PlyCount "204"]
[EventDate "2022.12.06"]
[EventType "tourn"]
[EventCountry "SRB"]
[SourceTitle "playchess.com"]
[Source "ChessBase"]
[SourceQuality "1"]
[TimeControl "40/5400+30:1800+30"]

{[%evp 9,204,-12,23,24,27,15,48,54,62,36,60,1,47,-28,0,-13,0,0,42,25,47,12,22,0,39,27,59,26,35,13,29,20,19,22,25,23,24,19,60,40,51,41,42,19,19,5,8,0,0,0,0,0,0,0,0,0,0,0,0,0,0,0,0,0,0,0,0,0,0,0,0,0,0,0,0,0,0,0,0,0,0,0,0,0,0,0,0,0,0,0,0,0,0,0,0,0,0,0,0,-12715,-12820,-12834,-166,-12833,-12837,-12839,-12832,-12842,-12842,-12843,-12843,-12843,-12839,-12840,-12832,-12832,-12833,-12832,0,0,0,0,0,0,0,0,0,0,0,0,0,0,0,0,0,0,0,-2494,0,0,0,0,0,0,0,0,0,0,0,0,0,0,0,0,0,0,0,0,0,0,0,0,0,0,0,0,0,-12839,0,-12840,-12841,-12841,-12840,-12841,-12841,-12845,-12845,-12846,-12844,-12845,-12844,-12844,-12843,-12844,-12844,-12846,-12847,-12849,-12847,-12848,-12847,-12847,-12847,-12848,-12848,-12849,-12849]} 1. e4 {[%emt 0:00:23]} e6 {[%emt 0:00:14]} 2. d3 {[%emt 0:05:20]} d5 {[%emt 0:01:13]} 3. Qe2 {[%emt 0:01:56]} c5 {[%emt 0:02:15]} 4. Nf3 {[%emt 0:01:47]} Nc6 {[%emt 0:00:08]} 5. g3 {[%emt 0:02:05]} dxe4 {[%emt 0:09:22]} 6. dxe4 {[%emt 0:02:37] B40: Sicilian: 2...e6, Unusual lines.} e5 {[%emt 0:00:16]} 7. c3 {[%emt 0:08:05] [#]} h5 $146 {[%emt 0:07:22]} ({Predecessor:} 7... Bg4 8. h3 Bh5 9. Bg2 Qd7 10. Nbd2 O-O-O 11. Nc4 f6 12. a4 Bf7 13. Be3 Be6 {1-0 (47) Nyzhnyk,I (2683)-Daggupati,B (2377) Philadelphia 2021}) 8. Bg2 {[%emt 0:33:09] White is slightly better.} Be7 {[%emt 0:02:22]} 9. h4 {[%emt 0:05:11]} f6 {[%emt 0:33:43]} 10. a3 {[%emt 0:01:16]} ({White should play} 10. O-O $14) 10... Nh6 {[%emt 0:07:11]} (10... Be6 $11) 11. b4 {[%emt 0:04:39]} (11. Bxh6 $14 Rxh6 12. Nbd2) 11... cxb4 {[%emt 0:01:02]} 12. axb4 {[%emt 0:01:17]} Be6 {[%emt 0:00:27]} 13. O-O {[%emt 0:02:04]} Nf7 {[%emt 0:02:02]} 14. Rd1 {[%emt 0:05:16]} Qc7 {[%emt 0:00:16]} 15. Na3 {[%emt 0:00:55]} O-O {[%emt 0:01:27]} 16. Nh2 {[%emt 0:03:02]} g6 {[%emt 0:00:25]} 17. Nf1 {[%emt 0:04:10] Ne3 is the strong threat.} Rfd8 {[%emt 0:04:32]} 18. Rxd8+ {[%emt 0:05:49]} (18. Ne3 $5 {[%cal Re3d5]}) 18... Ncxd8 {[%emt 0:03:46]} 19. Bd2 {[%emt 0:02:31]} a5 {[%emt 0:08:33]} 20. bxa5 {[%emt 0:06:40]} Rxa5 {[%emt 0:04:37]} 21. Nb5 {[%emt 0:00:22]} Qb6 {[%emt 0:00:04]} 22. Rxa5 {[%emt 0:00:14]} Qxa5 {[%emt 0:00:03]} 23. Ne3 {[%emt 0:00:28]} Qa1+ {[%emt 0:05:24]} 24. Bf1 {[%emt 0:02:34]} Nc6 {[%emt 0:04:23]} 25. Nc7 {[%emt 0:00:28]} Bh3 {[%emt 0:00:40]} 26. Ncd5 {[%emt 0:00:20]} (26. Be1 {simplifies} Bxf1 27. Kxf1 Bd8 28. Ne6) 26... Kg7 {[%emt 0:00:29]} 27. Nxe7 {[%emt 0:00:42]} Nxe7 {[%emt 0:00:04]} 28. Qe1 {[%emt 0:00:30]} Qxe1 {[%emt 0:00:12]} 29. Bxe1 {[%emt 0:00:06]} Bxf1 {[%emt 0:00:24]} 30. Kxf1 $11 {[%emt 0:00:12][%mdl 4096] Endgame KBN-KNN} Nd6 {[%emt 0:00:15]} 31. f3 {[%emt 0:00:27]} b5 {[%emt 0:00:17]} 32. Ke2 {[%emt 0:01:55]} Nc6 {[%emt 0:01:24]} 33. Kd3 {[%emt 0:00:00]} Na5 {[%emt 0:00:12]} 34. Bf2 {[%emt 0:00:00]} Kf7 {[%emt 0:00:52]} 35. Nd5 {[%emt 0:00:51]} Nac4 {[%emt 0:00:42]} 36. Bc5 {[%emt 0:00:35]} f5 {[%emt 0:00:16]} 37. Bxd6 {[%emt 0:00:20]} Nxd6 {[%emt 0:00:05] KN-KN} 38. Ne3 {[%emt 0:00:32]} Ke6 {[%emt 0:01:03]} 39. Ng2 {[%emt 0:00:38]} Nb7 {[%emt 0:00:19]} 40. Ke3 {[%emt 0:00:32]} Nc5 {[%emt 0:00:40]} 41. Ne1 {[%emt 0:09:02]} Kd6 {[%emt 0:02:15]} 42. Nc2 {[%emt 0:05:25]} Ne6 {[%emt 0:02:59]} 43. Ke2 {[%emt 0:09:46]} f4 {[%emt 0:14:25]} 44. g4 {[%emt 0:05:39]} hxg4 {[%emt 0:01:08]} 45. fxg4 {[%emt 0:00:10]} Nc5 {[%emt 0:00:18]} 46. Kf3 {[%emt 0:00:29]} Na4 {[%emt 0:00:49]} 47. h5 {[%emt 0:01:38]} gxh5 {[%emt 0:00:10]} 48. gxh5 {[%emt 0:00:05]} Ke6 {[%emt 0:00:23]} (48... Nxc3 $2 49. h6 $18) 49. Nb4 {[%emt 0:02:13]} Kf6 {[%emt 0:08:03]} 50. h6 {[%emt 0:00:18]} Nb2 {[%emt 0:01:05]} 51. h7 {[%emt 0:00:42]} Kg7 {[%emt 0:00:05] Inhibits h8Q+.} 52. h8=Q+ {[%emt 0:00:22]} Kxh8 {[%emt 0:00:04]} 53. Nc6 {[%emt 0:00:13]} Nc4 {[%emt 0:00:16] Threatens to win with ...Kg7.} 54. Ke2 $2 {[%emt 0:00:46][%mdl 8192]} (54. Nxe5 $11 Nxe5+ 55. Kxf4) 54... Kg7 $19 {[%emt 0:00:22]} 55. Na7 {[%emt 0:00:18]} Nd6 $2 {[%emt 0:00:13]} (55... Kf6 56. Nc6 Kg5) 56. Kf3 $2 {[%emt 0:00:54]} (56. Nc6) 56... Kf6 {[%emt 0:00:09]} 57. Nc6 {[%emt 0:00:26]} Nf7 {[%emt 0:02:44]} 58. Na7 {[%emt 0:00:31]} Ng5+ {[%emt 0:00:40]} 59. Ke2 {[%emt 0:00:27]} Nxe4 {[%emt 0:00:06]} 60. Nxb5 {[%emt 0:00:04]} Nc5 {[%emt 0:00:59]} 61. Kf3 {[%emt 0:00:54]} Kf5 {[%emt 0:00:42]} 62. Nd6+ {[%emt 0:00:31]} Ke6 {[%emt 0:00:05]} 63. Ne8 {[%emt 0:00:35] [#]} Nd7 $2 {[%emt 0:02:35]} (63... Nb3 $1 $19 64. Ng7+ Kf6 65. Ne8+ Ke7) 64. Ng7+ {[%emt 0:00:28]} Kf6 {[%emt 0:00:08]} 65. Ne8+ {[%emt 0:00:28]} Kf7 {[%emt 0:00:20]} 66. Nc7 {[%emt 0:00:28]} Kg6 {[%emt 0:00:16] And now ...Kf5 would win.} 67. Ne6 {[%emt 0:00:31]} Kf5 {[%emt 0:00:09]} 68. Ng7+ {[%emt 0:00:21]} Kf6 {[%emt 0:00:16]} 69. Ne8+ {[%emt 0:00:26]} Kg5 {[%emt 0:00:15]} 70. Nd6 {[%emt 0:00:31]} Nc5 {[%emt 0:02:48][%cal Oe5e4] Strongly threatening ...e4+!} 71. Nf7+ {[%emt 0:00:28]} Kf6 {[%emt 0:00:10]} 72. Nd6 {[%emt 0:00:36]} Ke6 $2 {[%emt 0:00:29][%mdl 8192]} (72... e4+ $11 73. Kxf4 Ke7) 73. Ne8 {[%emt 0:00:41] [#]} Kd5 $2 {[%emt 0:00:34]} (73... Nb3 $1 $19 {[%cal Rb3d2]} 74. Ng7+ Kf6 75. Ne8+ Ke7) 74. Nf6+ $1 $11 {[%emt 0:00:31]} Kd6 {[%emt 0:00:39]} (74... Kc4 $5) 75. Nh5 {[%emt 0:00:29]} Ne6 {[%emt 0:00:11]} 76. Nf6 {[%emt 0:00:24]} Ng5+ {[%emt 0:01:17]} 77. Kg4 {[%emt 0:00:30]} Ne6 {[%emt 0:00:26]} 78. Kf3 {[%emt 0:00:23]} Ke7 {[%emt 0:00:45]} 79. Nd5+ {[%emt 0:00:23]} Kd7 {[%emt 0:00:16]} 80. Kg4 {[%emt 0:00:51]} Kd6 {[%emt 0:00:14]} 81. Nf6 {[%emt 0:00:21]} Nc7 {[%emt 0:00:34]} 82. Nh5 {[%emt 0:00:35]} Ne6 {[%emt 0:00:23]} 83. Nf6 {[%emt 0:00:22]} Nc5 {[%emt 0:00:51]} 84. Kf3 {[%emt 0:00:39]} Nd3 {[%emt 0:00:34]} 85. Ke4 {[%emt 0:00:33]} Nf2+ {[%emt 0:00:08]} 86. Kf3 {[%emt 0:00:17]} Ke6 {[%emt 0:00:59]} 87. Nh5 {[%emt 0:00:25]} Nd3 {[%emt 0:00:07]} 88. Ke4 $2 {[%emt 0:00:38][%mdl 8192] White is on the road to losing.} (88. Kg4 $11) 88... Nc5+ $19 {[%emt 0:00:04]} 89. Kf3 {[%emt 0:00:08][%cal Oh5f4]} Kf5 {[%emt 0:00:05] Black is clearly winning.} 90. Ng7+ {[%emt 0:00:14]} Kg5 {[%emt 0:00:17]} 91. Ne8 {[%emt 0:01:18]} e4+ {[%emt 0:00:06]} 92. Kf2 {[%emt 0:00:17]} Nd3+ {[%emt 0:00:59]} 93. Kf1 {[%emt 0:00:45]} Kg4 {[%emt 0:00:26]} 94. Nf6+ {[%emt 0:00:20]} Kf3 {[%emt 0:00:08] ( -> ...e3)} 95. Nh7 {[%emt 0:00:33]} Ne5 {[%emt 0:00:53]} 96. Ng5+ {[%emt 0:00:35]} Ke3 {[%emt 0:00:04]} 97. Ne6 {[%emt 0:00:27]} f3 {[%emt 0:00:29]} 98. Ng5 {[%emt 0:00:27]} Ng4 {[%emt 0:00:46]} 99. Nh3 {[%emt 0:00:36]} f2 {[%emt 0:01:06]} 100. Kg2 {[%emt 0:00:33]} Ke2 {[%emt 0:00:15]} 101. Nf4+ {[%emt 0:00:07]} Ke1 {[%emt 0:00:04]} 102. Kg3 {[%emt 0:00:39]} f1=Q {[%emt 0:00:21] Weighted Error Value: White=0.42/Black=0.28 (precise)} 0-1